bitfinex-derivatives/quotes_SOLF0:USTF0_20250823
["timestamp","ask_amount","ask_price","bid_price","bid_amount"]
[1755919528126,5.0499,198.11,198.05,4.77109052]
[1755919528326,5.0499,198.11,198.04,7.6914]
[1755919528526,5.0499,198.11,198.05,12.25792867]
[1755919528726,5.0499,198.11,198.06,4.77008036]
[1755919528928,5.0499,198.11,198.08,2.64]
[1755919529631,7.9699,198.11,198.05,2.64]
[1755919529833,7.9699,198.11,198.06,4.77503352]
[1755919530130,2.92,198.1,198.06,2.64]
[1755919531835,2.92,198.09,198.06,2.64]
[1755919532335,2.92,198.09,198.03,2.64]
[1755919532530,2.92,198.11,198.03,2.64]
[1755919532736,2.92,198.09,197.99,2.64]
[1755919533034,5.0514,198.05,198.02,2.64]
[1755919533636,7.9614,198.05,198.02,2.64]
[1755919533936,5.0517,198.04,197.97,2.8]
[1755919534135,5.0517,198.04,197.98,9.63402833]
[1755919534436,7.9619,198.03,197.99,7.57810583]
[1755919534636,7.9619,198.03,198.0,4.77810583]
[1755919534825,2.91,198.03,198.01,4.77810583]
[1755919535030,2.91,198.06,197.99,2.8]
[1755919535224,5.0513,198.05,198.01,2.8]
[1755919535431,7.9613,198.05,198.01,2.8]
[1755919536234,7.9613,198.05,198.02,4.83506812]
[1755919536433,7.9613,198.05,198.01,2.8]
[1755919536632,2.91,198.06,198.02,4.83738151]
[1755919536838,2.91,198.06,198.03,7.63738151]
[1755919537133,2.91,198.06,198.0,2.8]
[1755919537334,2.91,198.05,198.01,7.63686447]
[1755919537532,2.91,198.08,198.02,7.63686447]
[1755919537830,2.91,198.07,198.03,4.83686447]
[1755919538035,2.91,198.1,198.04,2.8]
[1755919538332,2.91,198.13,198.06,2.8]
[1755919539636,7.9598,198.11,198.07,2.8]
[1755919540734,7.9598,198.11,198.08,2.8]
[1755919540937,5.0493,198.13,198.09,4.83488743]
[1755919541137,3.93427062,198.17,198.08,2.8]
[1755919541138,2.91,198.15,198.08,2.8]
[1755919541332,2.91,198.15,198.09,4.83496824]
[1755919541528,2.91,198.15,198.08,2.8]
[1755919541829,2.91,198.15,198.09,4.83468216]
[1755919542033,2.91,198.15,198.08,2.8]
[1755919542236,2.91,198.15,198.09,4.83467307]
[1755919542437,2.91,198.15,198.08,2.8]
[1755919542632,2.91,198.15,198.09,4.83462309]
[1755919542832,2.91,198.15,198.11,2.8]
[1755919543633,2.91,198.15,198.06,2.8]
[1755919543831,2.91,198.18,198.09,2.8]
[1755919544030,2.91,198.18,198.1,4.83249212]
[1755919544230,2.91,198.18,198.11,4.83249212]
[1755919544431,2.91,198.18,198.09,2.8]
[1755919544630,5.0486,198.16,198.1,4.83236192]
[1755919544844,2.91,198.15,198.11,7.63236192]
[1755919545040,2.91,198.15,198.11,2.8]
[1755919546440,7.9589,198.15,198.09,2.8]
[1755919546638,5.0489,198.15,198.1,7.63245162]
[1755919546842,7.9589,198.15,198.1,2.8]
[1755919547245,2.91,198.14,198.1,2.8]
[1755919547845,2.91,198.14,198.09,2.8]
[1755919548054,2.91,198.14,198.11,2.8]
[1755919548545,5.0489,198.15,198.11,2.8]
[1755919548743,7.9583,198.17,198.13,2.8]
[1755919548942,7.9583,198.17,198.14,7.63297782]
[1755919549147,7.9583,198.17,198.14,2.8]
[1755919550548,5.0483,198.17,198.15,7.63153373]
[1755919550738,5.0483,198.17,198.15,2.8]
[1755919552049,5.0478,198.19,198.15,2.8]
[1755919552244,5.0478,198.19,198.11,8.98387062]
[1755919552446,5.0478,198.19,198.16,2.8]
[1755919552749,7.9578,198.19,198.16,2.8]
[1755919552947,7.9578,198.19,198.11,8.98387062]
[1755919553149,7.9578,198.19,198.13,2.8]
[1755919553450,5.0481,198.18,198.14,7.62747427]
[1755919553650,7.9581,198.18,198.14,2.8]
[1755919554143,7.9581,198.18,198.03,25.2584]
[1755919554144,2.91,198.17,198.1,6.73427062]
[1755919554352,2.91,198.17,198.11,4.8273933]
[1755919554547,2.91,198.17,198.13,2.8]
[1755919554747,2.91,198.17,198.14,2.8]
[1755919555146,2.91,198.17,198.1,3.93427062]
[1755919555147,5.048,198.18,198.1,3.93427062]
[1755919555341,5.048,198.18,198.15,2.8]
[1755919557055,2.91,198.2,198.17,2.8]
[1755919558754,5.0474,198.21,198.13,3.93427062]
[1755919558952,7.9574,198.21,198.17,2.8]
[1755919559553,2.91,198.23,198.19,2.8]
[1755919559750,2.91,198.22,198.12,2.8]
[1755919560054,2.91,198.22,198.13,9.6236847]
[1755919560254,2.91,198.22,198.14,4.81558624]
[1755919560452,2.91,198.22,198.12,2.8]
[1755919560658,2.91,198.22,198.13,4.8181422]
[1755919560846,2.91,198.22,198.09,6.73427062]
[1755919561052,2.91,198.22,198.1,4.81889456]
[1755919561253,2.91,198.22,198.12,2.8]
[1755919561956,5.0477,198.19,198.12,2.8]
[1755919562158,2.91,198.19,198.12,2.8]
[1755919562657,2.91,198.17,198.07,2.8]
[1755919562859,2.91,198.17,198.08,4.81649291]
[1755919563057,2.91,198.17,198.07,2.8]
[1755919563252,3.93427062,198.15,198.03,6.77427062]
[1755919563452,2.81,198.14,198.04,9.62672511]
[1755919563758,2.81,198.11,198.05,4.81710878]
[1755919564058,2.81,198.11,198.06,7.65710878]
[1755919564357,2.81,198.11,198.07,4.81710878]
[1755919564559,2.81,198.11,198.03,3.93427062]
[1755919564754,2.81,198.11,198.04,12.50852638]
[1755919564955,2.81,198.11,198.05,9.66774796]
[1755919565150,2.81,198.11,198.06,4.81531476]
[1755919565359,2.81,198.11,198.07,7.65531476]
[1755919565561,2.81,198.11,198.07,2.84]
[1755919565856,2.81,198.19,198.09,2.84]
[1755919566048,2.81,198.19,198.1,4.81194513]
[1755919566247,2.81,198.19,198.11,4.81194513]
[1755919566447,2.81,198.19,198.12,4.81194513]
[1755919566645,2.81,198.19,198.09,6.77427062]
[1755919566859,2.81,198.19,198.1,4.85490293]
[1755919567053,2.81,198.19,198.11,4.85490293]
[1755919567457,2.81,198.19,198.09,6.77427062]
[1755919567656,5.0483,198.17,198.1,4.85617341]
[1755919567852,5.0483,198.17,198.11,4.85617341]
[1755919568055,5.0483,198.17,198.09,11.82447062]
[1755919568254,5.0483,198.17,198.1,4.85635148]
[1755919568455,5.0483,198.17,198.11,4.85635148]
[1755919568655,5.0483,198.17,198.09,11.82447062]
[1755919568852,7.8578,198.19,198.11,2.84]
[1755919569054,7.8578,198.19,198.13,2.84]
[1755919569260,7.8578,198.19,198.15,2.84]
[1755919569562,2.81,198.19,198.09,2.84]
[1755919569854,5.0489,198.15,198.1,4.85944626]
[1755919570059,2.81,198.14,198.1,2.84]
[1755919570649,2.81,198.14,198.06,2.84]
[1755919570852,2.81,198.14,198.07,4.8588302]
[1755919571053,2.81,198.14,198.08,4.8588302]
[1755919571250,2.81,198.14,198.06,2.84]
[1755919571449,2.81,198.14,198.07,4.86057095]
[1755919571649,2.81,198.14,198.08,4.86057095]
[1755919571849,2.81,198.14,198.06,2.84]
[1755919572050,2.81,198.14,198.07,4.86096549]
[1755919572256,5.0499,198.11,198.06,2.84]
[1755919572454,2.81,198.1,198.06,2.84]
[1755919573053,2.81,198.1,198.07,7.70239476]
[1755919573258,2.81,198.13,198.07,2.84]
[1755919573459,2.81,198.13,198.03,5.0516]
[1755919573460,2.81,198.13,198.03,2.84]
[1755919573769,5.0507,198.08,198.04,7.70240363]
[1755919573963,5.0507,198.08,198.04,2.84]
[1755919574260,7.8607,198.08,198.04,2.84]
[1755919574466,3.93427062,198.13,198.05,4.8624798]
[1755919574663,3.93427062,198.13,198.06,2.84]
[1755919575059,6.74427062,198.17,198.06,2.84]
[1755919575262,6.74427062,198.17,198.07,4.86097926]
[1755919575458,6.74427062,198.17,198.08,4.86037649]
[1755919575658,5.0487,198.15,198.06,7.8909]
[1755919575861,5.0487,198.15,198.08,2.84]
[1755919576053,5.0487,198.15,198.09,4.8611269]
[1755919576566,2.81,198.14,198.08,2.84]
[1755919576962,7.8598,198.11,198.03,3.93427062]
[1755919577162,2.81,198.11,198.04,7.70182953]
[1755919577365,2.81,198.11,198.05,4.86182953]
[1755919577663,2.81,198.11,198.04,2.84]
[1755919577866,2.81,198.09,198.05,7.70563883]
[1755919578056,2.81,198.09,198.05,2.84]
[1755919578560,5.0506,198.08,198.05,2.84]
[1755919578759,2.81,198.09,198.01,2.84]
[1755919578966,2.81,198.09,198.02,9.733057]
[1755919579167,2.81,198.09,198.01,2.84]
[1755919579168,2.81,198.09,198.03,4.87024481]
[1755919579356,2.81,198.09,198.01,2.84]
[1755919579667,2.81,198.09,198.02,4.87092062]
[1755919579862,2.81,198.09,198.01,2.84]
[1755919580064,7.8612,198.06,198.02,4.87006616]
[1755919580261,2.81,198.05,198.01,2.84]
[1755919580565,2.81,198.05,198.02,4.87071892]
[1755919580762,2.81,198.05,198.02,2.84]
[1755919581161,2.81,198.05,197.97,315.08089853]
[1755919581162,2.81,198.05,197.99,2.84]
[1755919581359,2.81,198.05,198.0,9.7386009]
[1755919581565,2.81,198.05,198.01,4.87344136]
[1755919581767,2.81,198.05,198.02,4.87344136]
[1755919581965,2.81,198.05,198.01,2.84]
[1755919582169,2.81,198.05,198.02,4.87386488]
[1755919582362,2.81,198.05,198.03,4.87691284]
[1755919582561,2.81,198.05,198.01,2.84]
[1755919582763,2.81,198.05,198.02,4.87651025]
[1755919583058,2.81,198.05,198.03,4.87651025]
[1755919583263,2.81,198.05,198.01,2.84]
[1755919583464,2.81,198.05,198.02,7.71664255]
[1755919583665,5.0505,198.08,198.04,2.84]
[1755919583864,5.0505,198.08,198.05,2.84]
[1755919584967,7.8605,198.08,198.05,2.84]
[1755919587267,7.86,198.11,198.01,2.84]
[1755919587470,2.81,198.11,198.03,2.84]
[1755919587777,2.81,198.11,198.04,4.87087261]
[1755919587971,2.81,198.11,198.05,4.87087261]
[1755919588165,2.81,198.11,198.03,2.84]
[1755919588365,2.81,198.11,198.04,4.87195527]
[1755919588566,5.0501,198.1,198.06,2.84]
[1755919588775,2.81,198.15,198.07,2.84]
[1755919589163,5.0494,198.13,198.08,4.87193546]
[1755919589475,5.0494,198.13,198.1,2.84]
[1755919591568,5.0494,198.13,198.12,2.84]
[1755919591969,5.0489,198.15,198.12,2.84]
[1755919593371,5.0491,198.14,198.11,2.92]
[1755919594872,5.0491,198.14,198.12,4.875155]
[1755919595173,5.0491,198.14,198.11,2.92]
[1755919595478,5.0491,198.14,198.12,4.87508776]
[1755919595675,5.0491,198.14,198.11,2.92]
[1755919595875,5.0491,198.14,198.12,4.87497349]
[1755919596076,5.0491,198.14,198.11,2.92]
[1755919597581,7.7891,198.14,198.11,2.92]
[1755919600282,3.93427062,198.19,198.03,25.259]
[1755919600283,2.74,198.19,198.13,2.92]
[1755919601087,2.74,198.17,198.13,2.92]
[1755919601688,2.74,198.16,198.13,2.92]
[1755919601988,2.74,198.15,198.08,2.92]
[1755919602188,2.74,198.15,198.07,3.93427062]
[1755919602189,2.74,198.15,198.1,2.92]
[1755919602389,2.74,198.15,198.12,2.92]
[1755919603692,2.74,198.18,198.11,2.92]
[1755919603889,2.74,198.18,198.12,4.80434681]
[1755919604086,2.74,198.17,198.13,4.80434681]
[1755919604286,2.74,198.16,198.1,8.98417062]
[1755919604588,2.74,198.16,198.12,2.92]
[1755919605392,2.74,198.16,198.13,2.92]
[1755919609196,7.7879,198.19,198.12,2.92]
[1755919609695,2.74,198.19,198.12,2.92]
[1755919609890,2.74,198.19,198.14,2.92]
[1755919610088,2.74,198.18,198.14,2.92]
[1755919611189,2.74,198.22,198.1,2.92]
[1755919611493,3.93427062,198.2,198.11,4.80038264]
[1755919611694,2.74,198.19,198.1,2.92]
[1755919611996,2.74,198.19,198.06,2.92]
[1755919612193,2.74,198.19,198.07,9.62412258]
[1755919612396,2.74,198.15,198.08,4.80197872]
[1755919612599,2.74,198.15,198.06,2.92]
[1755919613097,2.74,198.15,198.08,2.92]
[1755919613395,25.2365,198.21,198.09,4.80412522]
[1755919613586,2.74,198.24,198.13,3.93427062]
[1755919613793,2.74,198.24,198.14,12.53997358]
[1755919613991,2.74,198.24,198.15,9.61997358]
[1755919614198,2.74,198.24,198.16,4.8022008]
[1755919614395,2.74,198.24,198.17,4.8022008]
[1755919614591,2.74,198.24,198.14,2.92]
[1755919614794,2.74,198.24,198.15,9.61015046]
[1755919614993,2.74,198.24,198.16,4.79494286]
[1755919615192,2.74,198.24,198.17,4.79494286]
[1755919615394,2.74,198.24,198.14,2.92]
[1755919615593,2.74,198.24,198.16,2.92]
[1755919615793,2.74,198.24,198.17,4.7913185]
[1755919615998,2.74,198.24,198.16,2.92]
[1755919616199,2.74,198.24,198.17,4.78987049]
[1755919616394,2.74,198.24,198.16,6.85427062]
[1755919616596,2.74,198.28,198.17,7.70789156]
[1755919616894,2.74,198.28,198.18,4.78789156]
[1755919617095,2.74,198.28,198.17,2.92]
[1755919617296,2.74,198.28,198.18,4.78710391]
[1755919617492,7.7854,198.28,198.17,7.9682]
[1755919617696,7.7854,198.28,198.18,4.78444912]
[1755919617992,7.7854,198.28,198.17,2.92]
[1755919618298,7.7854,198.28,198.18,4.78466788]
[1755919618501,7.7854,198.28,198.17,2.92]
[1755919618697,7.7854,198.28,198.18,4.78310307]
[1755919618899,7.7854,198.28,198.19,2.92]
[1755919620204,2.74,198.27,198.16,4.78002351]
[1755919620398,2.74,198.27,198.15,6.85427062]
[1755919620598,5.0462,198.26,198.17,2.92]
[1755919620998,2.74,198.25,198.17,2.92]
[1755919621200,2.74,198.25,198.14,3.93427062]
[1755919621400,2.74,198.25,198.15,4.78054669]
[1755919621707,2.74,198.25,198.13,2.92]
[1755919621708,2.74,198.22,198.13,2.92]
[1755919622004,2.74,198.22,198.11,3.93427062]
[1755919622706,2.74,198.21,198.09,2.92]
[1755919622902,2.74,198.21,198.1,4.78020646]
[1755919623106,2.74,198.21,198.11,4.78020646]
[1755919623309,5.0479,198.19,198.09,3.93427062]
[1755919623507,2.74,198.21,198.11,2.73]
[1755919623911,2.74,198.21,198.05,25.2565]
[1755919623912,2.74,198.21,198.13,2.73]
[1755919624111,2.76,198.25,198.15,6.66427062]
[1755919624808,2.76,198.25,198.16,2.73]
[1755919625313,2.76,198.25,198.16,7.7783]
[1755919625607,2.76,198.25,198.16,2.73]
[1755919626212,7.8064,198.25,198.16,2.73]
[1755919628911,2.76,198.25,198.16,2.73]
[1755919629109,5.0458,198.27,198.16,2.73]
[1755919629412,2.76,198.29,198.19,2.73]
[1755919630515,7.8053,198.29,198.19,7.7775]
[1755919631110,7.8053,198.29,198.18,3.93427062]
[1755919631315,2.76,198.29,198.21,3.93427062]
[1755919631523,2.76,198.29,198.22,2.73]
[1755919632513,7.8053,198.29,198.22,2.73]
[1755919634722,2.76,198.29,198.22,7.7768]
[1755919635810,5.0448,198.31,198.22,7.7768]
[1755919636619,5.0448,198.31,198.24,2.73]
[1755919637014,0.87784575,198.35,198.29,3.93427062]
[1755919637213,2.76,198.37,198.3,2.73]
[1755919639319,2.76,198.35,198.26,2.73]
[1755919640020,2.76,198.36,198.24,182.97234421]
[1755919640214,2.76,198.36,198.25,4.86845915]
[1755919640418,2.76,198.36,198.24,182.97234421]
[1755919640814,5.0448,198.31,198.24,182.97234421]
[1755919643421,5.0448,198.31,198.25,2.73]
[1755919643728,2.76,198.32,198.25,2.73]
[1755919643915,2.76,198.32,198.25,7.7761]
[1755919644118,2.76,198.3,198.19,342.01]
[1755919644421,2.76,198.27,198.19,2.73]
[1755919644625,2.76,198.27,198.15,2.73]
[1755919644927,3.93427062,198.28,198.15,2.73]
[1755919644928,7.8065,198.24,198.16,4.87447941]
[1755919645120,7.8065,198.24,198.17,4.87447941]
[1755919645319,7.8065,198.24,198.15,2.73]
[1755919645523,5.047,198.22,198.16,4.8767568]
[1755919645835,2.76,198.21,198.12,126.22]
[1755919646126,5.0475,198.2,198.13,4.8780393]
[1755919646322,2.76,198.21,198.14,4.8780393]
[1755919646522,2.76,198.21,198.12,126.22]
[1755919646724,2.76,198.21,198.13,4.8773446]
[1755919646926,2.76,198.21,198.14,4.8773446]
[1755919647226,2.76,198.21,198.12,126.22]
[1755919647430,2.76,198.21,198.14,2.73]
[1755919650427,2.76,198.2,198.09,2.73]
[1755919650622,2.76,198.2,198.1,4.88167552]
[1755919650827,2.76,198.17,198.09,2.73]
[1755919651332,5.0488,198.15,198.09,2.73]
[1755919651528,2.76,198.14,198.05,2.73]
[1755919651730,2.76,198.14,198.06,4.88462454]
[1755919652030,2.76,198.14,198.05,2.73]
[1755919652230,5.0498,198.12,198.05,2.73]
[1755919652628,7.8098,198.12,198.05,2.73]
[1755919653532,5.05,198.11,198.03,126.04]
[1755919653732,5.05,198.11,198.04,4.88403017]
[1755919653936,5.05,198.11,198.01,2.76]
[1755919654128,3.93427062,198.16,198.03,3.93427062]
[1755919654325,0.03824754,198.08,198.06,0.03816303]
[1755919654526,0.03824754,198.08,198.07,2.76]
[1755919654831,2.9,198.15,198.07,7.640243]
[1755919655032,2.9,198.15,198.07,2.76]
[1755919655232,0.03579675,198.09,198.07,2.76]
[1755919655429,0.03579675,198.09,198.08,2.76]
[1755919655629,2.9,198.15,198.08,2.76]
[1755919655825,0.03649933,198.1,198.08,2.76]
[1755919656032,0.03649933,198.1,198.09,2.76]
[1755919659435,0.03649933,198.1,198.07,2.76]
[1755919659842,0.03649933,198.1,198.08,2.76]
[1755919660429,0.03649933,198.1,198.09,2.76]
[1755919666639,7.9478,198.19,198.13,2.76]
[1755919667235,2.9,198.26,198.15,2.76]
[1755919667842,2.9,198.26,198.19,0.03476934]
[1755919668639,2.9,198.22,198.19,0.03476934]
[1755919671344,2.9,198.21,198.19,0.03476934]
[1755919673644,7.9467,198.23,198.19,0.03476934]
[1755919674048,2.9,198.22,198.19,0.03476934]
[1755919674545,2.9,198.21,198.19,0.03476934]
[1755919675242,3.93427062,198.28,198.19,0.03476934]
[1755919675548,2.9,198.2,198.19,0.03476934]
[1755919678951,2.9,198.2,198.07,5.0506]
[1755919678952,2.9,198.15,198.07,5.0506]
[1755919680248,7.949,198.15,198.06,132.45427062]
[1755919681660,7.949,198.15,198.07,5.0506]
[1755919682553,2.9,198.15,198.08,7.8104]
[1755919684250,7.9477,198.19,198.09,2.76]
[1755919685654,7.9477,198.19,198.12,2.76]
[1755919686353,2.9,198.19,198.12,2.76]
[1755919686550,2.9,198.19,198.13,4.81220526]
[1755919686758,2.9,198.19,198.14,4.81220526]
[1755919686954,2.9,198.19,198.12,6.69427062]
[1755919687152,2.9,198.19,198.13,4.8116032]
[1755919687352,2.9,198.19,198.14,4.8116032]
[1755919687554,5.0472,198.21,198.15,2.76]
[1755919688554,2.9,198.23,198.16,4.81511264]
[1755919688860,2.9,198.23,198.17,4.81511264]
[1755919689062,2.9,198.23,198.18,4.81648246]
[1755919689256,2.9,198.23,198.19,7.57572993]
[1755919689455,2.9,198.23,198.19,2.76]
[1755919693261,2.9,198.24,198.2,2.76]
[1755919694567,2.9,198.28,198.15,2.76]
[1755919694759,2.9,198.28,198.16,4.81532853]
[1755919694956,2.9,198.28,198.15,2.76]
[1755919695162,2.9,198.28,198.16,4.81494768]
[1755919695359,2.9,198.28,198.15,2.76]
[1755919695561,2.9,198.28,198.16,4.81519018]
[1755919695759,2.9,198.28,198.15,2.76]
[1755919695962,2.9,198.28,198.16,4.81410135]
[1755919696262,2.9,198.26,198.17,4.81410135]
[1755919696457,2.9,198.26,198.15,2.76]
[1755919696659,5.0471,198.22,198.16,4.81958173]
[1755919696961,5.0471,198.22,198.17,7.57958173]
[1755919697264,2.9,198.21,198.17,2.76]
[1755919698561,2.9,198.21,198.18,2.76]
[1755919700565,5.0471,198.22,198.18,2.76]
[1755919700861,7.9471,198.22,198.18,2.76]
[1755919701854,5.0471,198.22,198.18,2.76]
[1755919702054,2.9,198.21,198.18,2.76]
[1755919703265,2.9,198.2,198.14,7.8089]
[1755919703563,2.9,198.19,198.15,9.67381799]
[1755919703763,2.9,198.19,198.16,4.82182505]
[1755919703964,2.9,198.19,198.17,4.82182505]
[1755919704263,2.9,198.19,198.18,4.82182505]
[1755919704460,5.0474,198.21,198.15,2.76]
[1755919704461,2.9,198.18,198.15,2.76]
[1755919704660,2.9,198.18,198.07,227.07120698]
[1755919704661,2.9,198.18,198.12,2.76]
[1755919704862,2.9,198.17,198.13,9.6822559]
[1755919705062,2.9,198.17,198.14,4.82606767]
[1755919705262,2.9,198.17,198.15,4.82606767]
[1755919705563,2.9,198.17,198.13,2.76]
[1755919705765,2.9,198.17,198.14,4.82843779]
[1755919705967,2.9,198.17,198.15,4.82843779]
[1755919706161,2.9,198.17,198.13,2.76]
[1755919706361,2.9,198.17,198.14,4.82856334]
[1755919706563,2.9,198.17,198.15,4.82856334]
[1755919706763,2.9,198.21,198.11,2.76]
[1755919706966,2.9,198.21,198.13,2.76]
[1755919707258,2.9,198.21,198.14,4.8285904]
[1755919707466,2.9,198.21,198.15,4.8285904]
[1755919707663,2.9,198.21,198.13,2.76]
[1755919707965,2.9,198.21,198.14,4.82999454]
[1755919708162,5.0476,198.2,198.15,4.82999454]
[1755919708366,7.9476,198.2,198.16,2.76]
[1755919710164,7.9476,198.2,198.14,5.0489]
[1755919710367,7.9476,198.2,198.17,2.76]
[1755919711073,5.0476,198.2,198.14,5.0489]
[1755919711272,2.9,198.18,198.15,4.83276577]
[1755919711471,2.9,198.17,198.16,4.83276577]
[1755919711674,5.0479,198.19,198.16,4.83276577]
[1755919711971,2.9,198.2,198.12,2.76]
[1755919712166,2.9,198.2,198.13,9.69422314]
[1755919712366,2.9,198.2,198.14,9.69422314]
[1755919712568,6.83427062,198.24,198.16,2.76]
[1755919712767,6.83427062,198.24,198.17,4.83203191]
[1755919712968,6.83427062,198.24,198.16,2.76]
[1755919713178,6.83427062,198.24,198.17,4.83014441]
[1755919713372,6.83427062,198.24,198.16,2.76]
[1755919713573,5.0468,198.23,198.17,9.87800817]
[1755919713770,5.0468,198.23,198.17,5.0482]
[1755919713970,5.0468,198.23,198.16,2.76]
[1755919714176,5.0468,198.23,198.17,4.8296263]
[1755919714374,5.0468,198.23,198.18,4.82955707]
[1755919714574,2.74,198.22,198.18,2.65]
[1755919715778,2.74,198.22,198.19,2.65]
[1755919717177,2.74,198.22,198.13,3.93427062]
[1755919717178,5.0471,198.22,198.14,5.0489]
[1755919717479,2.74,198.21,198.17,2.65]
[1755919717677,2.74,198.21,198.14,2.65]
[1755919717879,2.74,198.21,198.15,4.8047394]
[1755919718080,7.7876,198.2,198.16,7.4547394]
[1755919718284,7.7876,198.2,198.16,2.65]
[1755919718584,2.74,198.2,198.14,7.6989]
[1755919718880,5.047,198.22,198.15,4.8055381]
[1755919719087,2.74,198.23,198.16,4.8055381]
[1755919719283,2.74,198.23,198.14,7.6989]
[1755919719483,2.74,198.23,198.15,4.80557146]
[1755919719679,7.7869,198.23,198.17,2.65]
[1755919720183,2.74,198.21,198.17,2.65]
[1755919720886,7.7873,198.21,198.17,2.65]
[1755919721087,2.74,198.2,198.12,2.65]
[1755919721280,2.74,198.2,198.13,9.68366812]
[1755919721479,2.74,198.2,198.14,4.80848149]
[1755919721680,3.93427062,198.24,198.12,2.65]
[1755919721681,2.74,198.18,198.15,4.80848149]
[1755919721880,2.74,198.18,198.12,2.65]
[1755919722087,2.74,198.17,198.13,12.33467891]
[1755919722280,2.74,198.17,198.14,7.45900464]
[1755919722482,2.74,198.17,198.15,4.80900464]
[1755919722682,7.7878,198.19,198.14,2.65]
[1755919722883,5.0478,198.19,198.15,4.80914363]
[1755919723181,2.74,198.18,198.14,2.65]
[1755919723377,2.74,198.18,198.15,4.80933227]
[1755919723583,2.74,198.18,198.14,2.65]
[1755919723885,2.74,198.18,198.15,4.80957636]
[1755919724085,2.74,198.18,198.14,2.65]
[1755919724288,2.74,198.18,198.15,4.8104085]
[1755919724484,5.0478,198.19,198.13,7.6992]
[1755919724685,5.0478,198.19,198.15,2.65]
[1755919724887,5.0478,198.19,198.16,7.46088768]
[1755919725086,5.0478,198.19,198.17,4.81088768]
[1755919725389,5.0473,198.21,198.16,2.65]
[1755919725688,7.7873,198.21,198.17,4.81417573]
[1755919725988,7.7873,198.21,198.16,2.65]
[1755919726183,7.7873,198.21,198.17,4.8141756]
[1755919726385,7.7873,198.21,198.16,2.65]
[1755919726585,7.7873,198.21,198.17,7.46436149]
[1755919726891,35.3224,198.26,198.19,2.65]
[1755919726892,7.7869,198.23,198.19,2.65]
[1755919727188,2.74,198.22,198.16,2.65]
[1755919727490,2.74,198.22,198.13,3.93427062]
[1755919727491,5.0469,198.23,198.2,2.65]
[1755919727685,2.74,198.24,198.13,2.65]
[1755919727884,2.74,198.24,198.14,9.70208147]
[1755919728185,2.74,198.22,198.15,4.81760983]
[1755919728386,7.7884,198.17,198.16,4.81760983]
[1755919729384,7.7884,198.17,198.1,2.65]
[1755919729593,7.7884,198.17,198.11,11.71957112]
[1755919729894,7.7884,198.17,198.12,14.36927198]
[1755919730087,7.7884,198.17,198.13,9.71161001]
[1755919730287,7.7884,198.17,198.14,9.71161001]
[1755919730490,7.7884,198.17,198.12,2.65]
[1755919730491,7.7884,198.17,198.15,9.71161001]
[1755919730687,7.7884,198.17,198.16,4.82223738]
[1755919731994,2.74,198.17,198.16,4.82223738]